[Event "POL-chT 1 Liga 2019"]
[Site "Dzwirzyno"]
[Date "2019.09.14"]
[Round "8.25"]
[White "Cukrowski, Filip"]
[Black "Chylewski, Patryk"]
[Result "1/2-1/2"]
[ECO "C88"]
[WhiteElo "2410"]
[BlackElo "2342"]
[Annotator "NA"]
[PlyCount "65"]
[EventDate "2019.09.07"]
[EventType "team-tourn"]
[EventCountry "POL"]
[SourceTitle "playchess.com"]
[Source "ChessBase"]
[SourceQuality "1"]
[TimeControl "40/5400+30:1800+30"]

1. e4 {[%emt 0:01:01]} e5 {[%emt 0:00:00]} 2. Nf3 {[%emt 0:00:08]} Nc6 {[%emt 0:00:00]} 3. Bb5 {[%emt 0:00:48]} a6 {[%emt 0:00:00]} 4. Ba4 {[%emt 0:01:58]} Nf6 {[%emt 0:00:00]} 5. O-O {[%emt 0:00:06]} Be7 {[%emt 0:00:02]} 6. Re1 {[%emt 0:00:09]} b5 {[%emt 0:00:07]} 7. Bb3 {[%emt 0:00:05]} O-O {[%emt 0:00:08]} 8. h3 {[%emt 0:00:11]} Bb7 {[%emt 0:00:10]} 9. d3 {[%emt 0:04:33]} d6 {[%emt 0:07:09]} 10. c3 {[%emt 0:03:05]} Na5 {[%emt 0:08:19]} 11. Bc2 {[%emt 0:00:05]} c5 {[%emt 0:00:07]} 12. Nbd2 {[%emt 0:00:46]} Re8 {[%emt 0:00:54]} 13. Nf1 {[%emt 0:01:29]} Bf8 {[%emt 0:00:49]} 14. Ng3 {[%emt 0:00:22]} g6 {[%emt 0:00:43]} 15. b4 {[%emt 0:07:13]} Nc6 {[%emt 0:09:01]} 16. a3 {[%emt 0:00:16]} a5 {[%emt 0:01:08]} 17. bxa5 {[%emt 0:06:23]} Qxa5 {[%emt 0:02:14]} 18. Bb3 {[%emt 0:04:38]} c4 {[%emt 0:08:17]} 19. dxc4 {[%emt 0:00:28]} bxc4 {[%emt 0:00:12]} 20. Bxc4 {[%emt 0:00:32]} Qxc3 {[%emt 0:02:17]} 21. Qb3 {[%emt 0:01:00]} Qxb3 {[%emt 0:01:11]} 22. Bxb3 {[%emt 0:00:06]} Na5 {[%emt 0:02:23]} 23. Ba2 {[%emt 0:00:27]} Rec8 {[%emt 0:10:29]} 24. Bd2 {[%emt 0:11:10]} Nc4 {[%emt 0:09:54]} 25. Bb4 {[%emt 0:01:27]} h6 {[%emt 0:00:32]} 26. Rec1 {[%emt 0:02:32]} Nb6 {[%emt 0:01:59]} 27. Nd2 {[%emt 0:05:54]} d5 {[%emt 0:03:45]} 28. Rxc8 {[%emt 0:04:44]} Nxc8 {[%emt 0:01:55]} 29. Rb1 {[%emt 0:15:28]} Bxb4 {[%emt 0:04:25]} 30. Rxb4 {[%emt 0:00:05]} Rxa3 31. Bb3 {[%emt 0:00:06]} Bc6 {[%emt 0:13:11]} 32. Nf3 {[%emt 0:00:52]} dxe4 {[%emt 0:02:37]} 33. Bxf7+ {[%emt 0:07:51]} 1/2-1/2

[Event "POL-chT 1 Liga 2019"]
[Site "Dzwirzyno"]
[Date "2019.09.14"]
[Round "8.26"]
[White "Kowalski, Igor"]
[Black "Lewtak, Damian"]
[Result "1/2-1/2"]
[ECO "D38"]
[WhiteElo "2364"]
[BlackElo "2377"]
[Annotator "NA"]
[PlyCount "34"]
[EventDate "2019.09.07"]
[EventType "team-tourn"]
[EventCountry "POL"]
[SourceTitle "playchess.com"]
[Source "ChessBase"]
[SourceQuality "1"]
[TimeControl "40/5400+30:1800+30"]

1. d4 {[%emt 0:00:00]} Nf6 {[%emt 0:00:00]} 2. c4 {[%emt 0:00:00]} e6 {[%emt 0:00:00]} 3. Nf3 {[%emt 0:00:00]} d5 {[%emt 0:00:00]} 4. Nc3 {[%emt 0:00:03]} Bb4 {[%emt 0:00:00]} 5. Bg5 {[%emt 0:00:08]} h6 {[%emt 0:00:00]} 6. Bxf6 {[%emt 0:00:03]} Qxf6 {[%emt 0:00:01]} 7. Qa4+ {[%emt 0:00:03]} Nc6 {[%emt 0:00:06]} 8. e3 {[%emt 0:00:02]} O-O {[%emt 0:01:37]} 9. Be2 {[%emt 0:01:09]} Bd7 {[%emt 0:01:02]} 10. Qb3 {[%emt 0:01:26]} dxc4 {[%emt 0:00:19]} 11. Qxc4 {[%emt 0:00:37]} Qg6 {[%emt 0:01:38]} 12. O-O {[%emt 0:00:12]} Bd6 {[%emt 0:06:27]} 13. Nb5 {[%emt 0:02:31]} Rfc8 {[%emt 0:05:22]} 14. Nxd6 {[%emt 0:16:32]} cxd6 {[%emt 0:00:06]} 15. Qb3 {[%emt 0:00:07]} Nd8 {[%emt 0:17:43]} 16. Qa3 {[%emt 0:19:43]} Qc2 {[%emt 0:00:18]} 17. Bd3 {[%emt 0:01:53]} Qc7 {[%emt 0:02:53]} 1/2-1/2

[Event "POL-chT 1 Liga 2019"]
[Site "Dzwirzyno"]
[Date "2019.09.14"]
[Round "8.27"]
[White "Plichta, Kamil"]
[Black "Nowak, Lukasz"]
[Result "1-0"]
[ECO "A45"]
[WhiteElo "2349"]
[BlackElo "2270"]
[Annotator "NA"]
[PlyCount "105"]
[EventDate "2019.09.07"]
[EventType "team-tourn"]
[EventCountry "POL"]
[SourceTitle "playchess.com"]
[Source "ChessBase"]
[SourceQuality "1"]
[TimeControl "40/5400+30:1800+30"]

1. d4 {[%emt 0:00:00]} Nf6 {[%emt 0:00:00]} 2. Bg5 {[%emt 0:00:00]} d5 {[%emt 0:00:00]} 3. e3 {[%emt 0:00:00]} c5 {[%emt 0:00:06]} 4. Bxf6 {[%emt 0:00:00]} gxf6 {[%emt 0:00:08]} 5. dxc5 {[%emt 0:00:00]} e6 {[%emt 0:00:15]} 6. Nf3 {[%emt 0:00:00]} Bxc5 {[%emt 0:00:20]} 7. Be2 {[%emt 0:00:02]} b6 {[%emt 0:00:28]} 8. O-O {[%emt 0:00:25]} Bb7 {[%emt 0:18:35]} 9. c4 {[%emt 0:00:47]} dxc4 {[%emt 0:01:18]} 10. Qa4+ {[%emt 0:01:13]} Nd7 {[%emt 0:01:30]} 11. Nc3 {[%emt 0:08:50]} Qe7 {[%emt 0:03:33]} 12. Rfd1 {[%emt 0:02:59]} a6 {[%emt 0:03:01]} 13. Qxc4 {[%emt 0:01:30]} O-O {[%emt 0:02:58]} 14. Qh4 {[%emt 0:05:37]} Rfd8 {[%emt 0:04:25]} 15. Ne4 {[%emt 0:05:18]} Bxe4 {[%emt 0:05:06]} 16. Qxe4 {[%emt 0:00:05]} f5 {[%emt 0:11:28]} 17. Qf4 {[%emt 0:11:05]} a5 {[%emt 0:01:55]} 18. h4 {[%emt 0:08:20]} Nf8 {[%emt 0:07:23]} 19. h5 {[%emt 0:02:48]} Rxd1+ {[%emt 0:02:05]} 20. Rxd1 {[%emt 0:00:03]} Rd8 {[%emt 0:00:15]} 21. Rxd8 {[%emt 0:00:12]} Qxd8 {[%emt 0:00:08]} 22. Qg3+ {[%emt 0:01:57]} Kh8 {[%emt 0:00:22]} 23. Qe5+ {[%emt 0:00:14]} f6 {[%emt 0:02:53]} 24. Qc3 {[%emt 0:03:54]} Kg7 {[%emt 0:04:38]} 25. a3 {[%emt 0:03:52]} Kf7 {[%emt 0:10:31]} 26. Qc4 {[%emt 0:03:41]} Qd6 {[%emt 0:08:34]} 27. Qa6 {[%emt 0:04:15]} Qc7 {[%emt 0:01:36]} 28. g3 {[%emt 0:01:11]} Nd7 {[%emt 0:01:15]} 29. Qa8 {[%emt 0:01:08]} Qb8 {[%emt 0:03:02]} 30. Qc6 {[%emt 0:01:04]} Ke7 {[%emt 0:00:32]} 31. Bb5 {[%emt 0:01:04]} Nf8 {[%emt 0:02:50]} 32. Kg2 {[%emt 0:01:26]} Qd8 {[%emt 0:01:04]} 33. Qb7+ {[%emt 0:00:13]} Nd7 {[%emt 0:00:08]} 34. b4 {[%emt 0:00:14]} axb4 {[%emt 0:00:37]} 35. axb4 {[%emt 0:00:05]} Bd6 {[%emt 0:00:32]} 36. Nd4 {[%emt 0:01:46]} Qc7 {[%emt 0:00:17]} 37. Qa8 {[%emt 0:00:43]} Nb8 {[%emt 0:01:04]} 38. Qa2 {[%emt 0:00:22]} Qc8 {[%emt 0:01:19]} 39. Bc4 {[%emt 0:01:02]} e5 {[%emt 0:01:21]} 40. Qa7+ {[%emt 0:00:00]} Bc7 {[%emt 0:00:00]} 41. Nxf5+ {[%emt 0:07:12]} Qxf5 {[%emt 0:08:06]} 42. Qxc7+ {[%emt 0:00:03]} Nd7 {[%emt 0:00:10]} 43. Bb5 {[%emt 0:00:28]} Qe4+ {[%emt 0:00:27]} 44. Kh2 {[%emt 0:00:16]} Qf5 {[%emt 0:03:36]} 45. Qxd7+ {[%emt 0:00:35]} Qxd7 {[%emt 0:00:23]} 46. Bxd7 {[%emt 0:00:04]} Kxd7 {[%emt 0:00:07]} 47. g4 {[%emt 0:00:07]} Kc6 {[%emt 0:01:54]} 48. f4 {[%emt 0:00:05]} Kd5 {[%emt 0:00:21]} 49. Kg3 {[%emt 0:01:11]} Ke4 {[%emt 0:00:14]} 50. g5 {[%emt 0:00:20]} Kxe3 {[%emt 0:07:07]} 51. fxe5 {[%emt 0:00:08]} f5 {[%emt 0:00:25]} 52. e6 {[%emt 0:00:03]} f4+ {[%emt 0:00:08]} 53. Kg4 {[%emt 0:00:04]} 1-0

[Event "POL-chT 1 Liga 2019"]
[Site "Dzwirzyno"]
[Date "2019.09.14"]
[Round "8.28"]
[White "Sanz Wawer, Daniel"]
[Black "Reza, Wojciech"]
[Result "0-1"]
[ECO "A50"]
[WhiteElo "2244"]
[BlackElo "2293"]
[Annotator "NA"]
[PlyCount "138"]
[EventDate "2019.09.07"]
[EventType "team-tourn"]
[EventCountry "POL"]
[SourceTitle "playchess.com"]
[Source "ChessBase"]
[SourceQuality "1"]
[TimeControl "40/5400+30:1800+30"]

1. d4 {[%emt 0:00:00]} Nf6 {[%emt 0:00:08]} 2. c4 {[%emt 0:00:00]} g6 {[%emt 0:01:01]} 3. f3 {[%emt 0:00:47]} c5 {[%emt 0:01:31]} 4. d5 {[%emt 0:00:45]} e6 {[%emt 0:02:28]} 5. Nc3 {[%emt 0:01:44]} exd5 {[%emt 0:00:48]} 6. cxd5 {[%emt 0:00:23]} d6 {[%emt 0:00:30]} 7. e4 {[%emt 0:00:39]} a6 {[%emt 0:01:11]} 8. a4 {[%emt 0:00:29]} Bg7 {[%emt 0:00:13]} 9. Nge2 {[%emt 0:00:21]} Nbd7 {[%emt 0:02:18]} 10. Ng3 {[%emt 0:00:17]} h5 {[%emt 0:06:18]} 11. Be2 {[%emt 0:00:50]} Qe7 {[%emt 0:07:42]} 12. Bg5 {[%emt 0:03:04]} h4 {[%emt 0:07:44]} 13. Nf1 {[%emt 0:00:20]} Qe5 {[%emt 0:00:58]} 14. Qd2 {[%emt 0:03:41]} Nh5 {[%emt 0:07:53]} 15. Rd1 {[%emt 0:10:59]} Bf6 {[%emt 0:03:49]} 16. Be3 {[%emt 0:04:14]} g5 {[%emt 0:05:25]} 17. Rg1 {[%emt 0:22:40]} Nf4 {[%emt 0:23:29]} 18. g3 {[%emt 0:10:03]} hxg3 {[%emt 0:00:34]} 19. hxg3 {[%emt 0:00:10]} Nxe2 {[%emt 0:00:30]} 20. Qxe2 {[%emt 0:00:43]} Qe7 {[%emt 0:00:29]} 21. Nd2 {[%emt 0:01:08]} Ne5 {[%emt 0:00:42]} 22. Kf2 {[%emt 0:05:59]} Rh2+ {[%emt 0:01:52]} 23. Rg2 {[%emt 0:00:06]} Rh7 {[%emt 0:02:21]} 24. Nc4 {[%emt 0:03:09]} Nxc4 {[%emt 0:01:55]} 25. Qxc4 {[%emt 0:00:06]} Bd7 {[%emt 0:00:05]} 26. Kg1 {[%emt 0:08:50]} Kf8 {[%emt 0:02:59]} 27. Rh2 {[%emt 0:03:03]} Rxh2 {[%emt 0:00:23]} 28. Kxh2 {[%emt 0:00:05]} Kg7 {[%emt 0:01:51]} 29. Kg2 {[%emt 0:01:13]} b5 {[%emt 0:04:24]} 30. axb5 {[%emt 0:04:07]} axb5 {[%emt 0:00:07]} 31. Nxb5 {[%emt 0:01:14]} Rb8 {[%emt 0:00:20]} 32. Nc3 {[%emt 0:01:47]} Rxb2+ {[%emt 0:00:07]} 33. Rd2 {[%emt 0:00:27]} Rb4 {[%emt 0:00:27]} 34. Qd3 {[%emt 0:00:05]} Rb3 {[%emt 0:00:14]} 35. Rc2 {[%emt 0:01:03]} g4 {[%emt 0:04:25]} 36. Bd2 {[%emt 0:04:25]} Qe5 {[%emt 0:01:14]} 37. Qc4 {[%emt 0:08:02]} gxf3+ {[%emt 0:00:54]} 38. Kf2 {[%emt 0:00:42]} Ra3 {[%emt 0:02:38]} 39. Qf1 {[%emt 0:01:03]} Bg4 {[%emt 0:02:37]} 40. Qh1 {[%emt 0:00:00]} Bg5 {[%emt 0:00:00]} 41. Bxg5 {[%emt 0:02:43]} Qxg5 {[%emt 0:05:00]} 42. Qh4 {[%emt 0:02:44]} f6 {[%emt 0:12:32]} 43. Nd1 {[%emt 0:06:56]} Ra4 {[%emt 0:05:34]} 44. Qxg5+ {[%emt 0:06:45]} fxg5 {[%emt 0:00:05]} 45. Ne3 {[%emt 0:00:07]} Rxe4 {[%emt 0:00:35]} 46. Rc4 {[%emt 0:00:18]} Rxc4 {[%emt 0:02:49]} 47. Nxc4 {[%emt 0:00:03]} Bh5 {[%emt 0:03:05]} 48. Nxd6 {[%emt 0:02:26]} g4 {[%emt 0:00:22]} 49. Ne4 {[%emt 0:01:07]} c4 {[%emt 0:00:29]} 50. Ke3 {[%emt 0:03:19]} Bg6 {[%emt 0:01:35]} 51. Nf2 {[%emt 0:07:15]} c3 {[%emt 0:01:02]} 52. Nxg4 {[%emt 0:00:06]} c2 {[%emt 0:00:09]} 53. Kd2 {[%emt 0:00:02]} Kf8 {[%emt 0:01:29]} 54. Kc1 {[%emt 0:00:20]} Ke7 {[%emt 0:00:39]} 55. Kd2 {[%emt 0:00:04]} Kd6 {[%emt 0:00:56]} 56. Ne3 {[%emt 0:00:05]} Ke5 {[%emt 0:04:14]} 57. Kc1 {[%emt 0:04:36]} Kd4 {[%emt 0:00:57]} 58. Ng4 {[%emt 0:00:33]} Kxd5 {[%emt 0:01:01]} 59. Kd2 {[%emt 0:00:17]} Kd4 {[%emt 0:00:42]} 60. Nf2 {[%emt 0:00:52]} Bf5 {[%emt 0:00:13]} 61. Nh1 {[%emt 0:00:16]} Kc4 {[%emt 0:00:39]} 62. g4 {[%emt 0:00:44]} Kb3 {[%emt 0:00:34]} 63. Kc1 {[%emt 0:00:30]} Bxg4 {[%emt 0:00:27]} 64. Nf2 {[%emt 0:00:03]} Bf5 {[%emt 0:00:13]} 65. Nh1 {[%emt 0:00:03]} Kc4 {[%emt 0:00:36]} 66. Kd2 {[%emt 0:00:08]} Kd4 {[%emt 0:00:18]} 67. Nf2 {[%emt 0:00:02]} Ke5 {[%emt 0:00:23]} 68. Ng4+ {[%emt 0:01:46]} Bxg4 {[%emt 0:00:12]} 69. Kd3 {[%emt 0:00:03]} Kf4 {[%emt 0:00:14]} 0-1

[Event "POL-chT 1 Liga 2019"]
[Site "Dzwirzyno"]
[Date "2019.09.14"]
[Round "8.29"]
[White "Renkowski, Piotr"]
[Black "Kokoszczynski, Jan"]
[Result "0-1"]
[ECO "B10"]
[WhiteElo "2179"]
[BlackElo "2289"]
[Annotator "NA"]
[PlyCount "56"]
[EventDate "2019.09.07"]
[EventType "team-tourn"]
[EventCountry "POL"]
[SourceTitle "playchess.com"]
[Source "ChessBase"]
[SourceQuality "1"]
[TimeControl "40/5400+30:1800+30"]

1. e4 {[%emt 0:00:00]} c6 {[%emt 0:00:00]} 2. c4 {[%emt 0:00:00]} d5 {[%emt 0:00:00]} 3. cxd5 {[%emt 0:00:00]} cxd5 {[%emt 0:00:00]} 4. exd5 {[%emt 0:00:00]} Nf6 {[%emt 0:00:05]} 5. Nc3 {[%emt 0:00:00]} g6 {[%emt 0:01:01]} 6. Nf3 {[%emt 0:02:28]} Bg7 {[%emt 0:01:45]} 7. Bc4 {[%emt 0:04:13]} O-O {[%emt 0:00:36]} 8. O-O {[%emt 0:01:27]} Nbd7 {[%emt 0:03:37]} 9. Re1 {[%emt 0:03:31]} a6 {[%emt 0:02:04]} 10. a4 {[%emt 0:05:14]} Nb6 {[%emt 0:01:16]} 11. Bb3 {[%emt 0:01:05]} Nbxd5 {[%emt 0:07:16]} 12. d4 {[%emt 0:02:11]} e6 {[%emt 0:12:48]} 13. Bg5 {[%emt 0:10:45]} Qd6 {[%emt 0:06:16]} 14. Qd2 {[%emt 0:16:30]} Re8 {[%emt 0:03:07]} 15. Ne5 {[%emt 0:04:22]} Qf8 {[%emt 0:19:28]} 16. a5 {[%emt 0:23:09]} b5 {[%emt 0:14:43]} 17. axb6 {[%emt 0:01:09]} Nxb6 {[%emt 0:00:08]} 18. Bxf6 {[%emt 0:03:40]} Bxf6 {[%emt 0:00:37]} 19. Ne4 {[%emt 0:01:58]} Bg7 {[%emt 0:01:11]} 20. Qa5 {[%emt 0:02:33]} Nd7 {[%emt 0:11:00]} 21. Nxf7 {[%emt 0:00:45]} Rb8 {[%emt 0:07:49]} 22. Ba2 {[%emt 0:00:29]} Rxb2 {[%emt 0:04:15]} 23. Ned6 {[%emt 0:02:49]} Bxd4 {[%emt 0:00:02]} 24. Kh1 {[%emt 0:01:07]} Rxf2 {[%emt 0:01:59]} 25. Rad1 {[%emt 0:01:05]} Bc5 {[%emt 0:00:36]} 26. Nxe8 {[%emt 0:05:26]} Bb7 {[%emt 0:00:00]} 27. Rg1 {[%emt 0:00:02]} Qxf7 {[%emt 0:00:29]} 28. Nc7 {[%emt 0:01:00]} Bxg2+ {[%emt 0:00:44]} 0-1

[Event "POL-chT 1 Liga 2019"]
[Site "Dzwirzyno"]
[Date "2019.09.14"]
[Round "8.30"]
[White "Moscicka, Pola"]
[Black "Jablonska, Sabina"]
[Result "1/2-1/2"]
[ECO "A60"]
[WhiteElo "1994"]
[BlackElo "1928"]
[Annotator "NA"]
[PlyCount "144"]
[EventDate "2019.09.07"]
[EventType "team-tourn"]
[EventCountry "POL"]
[SourceTitle "playchess.com"]
[Source "ChessBase"]
[SourceQuality "1"]
[TimeControl "40/5400+30:1800+30"]

1. d4 {[%emt 0:00:00]} Nf6 {[%emt 0:00:00]} 2. c4 {[%emt 0:00:00]} c5 {[%emt 0:00:00]} 3. d5 {[%emt 0:00:00]} e6 {[%emt 0:00:01]} 4. Nc3 {[%emt 0:00:00]} exd5 {[%emt 0:00:05]} 5. cxd5 {[%emt 0:00:00]} Bd6 {[%emt 0:00:07]} 6. Nf3 {[%emt 0:00:13]} O-O {[%emt 0:00:24]} 7. g3 {[%emt 0:00:16]} Re8 {[%emt 0:00:47]} 8. a4 {[%emt 0:05:27]} Bc7 {[%emt 0:02:51]} 9. Bg2 {[%emt 0:00:28]} d6 {[%emt 0:00:53]} 10. O-O {[%emt 0:00:34]} a6 {[%emt 0:01:54]} 11. h3 {[%emt 0:02:14]} Nbd7 {[%emt 0:02:05]} 12. b3 {[%emt 0:10:33]} Rb8 {[%emt 0:22:33]} 13. Nd2 {[%emt 0:04:23]} Ba5 {[%emt 0:18:16]} 14. Bb2 {[%emt 0:00:50]} b5 {[%emt 0:01:16]} 15. axb5 {[%emt 0:01:23]} axb5 {[%emt 0:01:34]} 16. Re1 {[%emt 0:04:33]} Qc7 {[%emt 0:09:10]} 17. Qc2 {[%emt 0:03:17]} c4 {[%emt 0:25:46]} 18. bxc4 {[%emt 0:00:37]} b4 {[%emt 0:02:01]} 19. Ncb1 {[%emt 0:04:27]} b3 {[%emt 0:00:21]} 20. Qc1 {[%emt 0:00:50]} Nc5 {[%emt 0:00:56]} 21. Nc3 {[%emt 0:05:59]} Bd7 {[%emt 0:02:45]} 22. g4 {[%emt 0:04:53]} Re7 {[%emt 0:01:56]} 23. g5 {[%emt 0:05:52]} Nh5 {[%emt 0:00:47]} 24. Nf3 {[%emt 0:01:04]} Ne4 {[%emt 0:03:15]} 25. Nxe4 {[%emt 0:08:13]} Rxe4 {[%emt 0:00:04]} 26. Nd2 {[%emt 0:00:35]} Bxd2 {[%emt 0:00:34]} 27. Qxd2 {[%emt 0:00:06]} Rxc4 {[%emt 0:00:05]} 28. Rec1 {[%emt 0:01:20]} Bf5 {[%emt 0:02:00]} 29. e4 {[%emt 0:02:18]} Bg6 {[%emt 0:00:04]} 30. Rxc4 {[%emt 0:01:08]} Qxc4 {[%emt 0:00:07]} 31. Rc1 {[%emt 0:00:04]} Qa4 {[%emt 0:01:04]} 32. Bf3 {[%emt 0:01:38]} f6 {[%emt 0:00:25]} 33. Qc3 {[%emt 0:02:14]} Rf8 {[%emt 0:01:02]} 34. Qc6 {[%emt 0:04:08]} Qa2 {[%emt 0:00:11]} 35. Qc3 {[%emt 0:01:26]} Qa4 {[%emt 0:00:16]} 36. Ra1 {[%emt 0:00:27]} Qd7 {[%emt 0:00:49]} 37. Bg4 {[%emt 0:05:07]} Qe7 {[%emt 0:00:04]} 38. Qe3 {[%emt 0:00:55]} Qe8 {[%emt 0:01:20]} 39. Ra7 {[%emt 0:00:48]} Kh8 {[%emt 0:00:54]} 40. f4 {[%emt 0:00:00]} Rf7 {[%emt 0:00:00]} 41. Rxf7 {[%emt 0:10:05]} Bxf7 {[%emt 0:02:00]} 42. Bxh5 {[%emt 0:00:43]} Bxh5 {[%emt 0:00:28]} 43. gxf6 {[%emt 0:00:12]} Qg6+ {[%emt 0:01:00]} 44. Kf2 {[%emt 0:00:04]} gxf6 {[%emt 0:01:26]} 45. f5 {[%emt 0:01:01]} Qg7 {[%emt 0:09:22]} 46. Bd4 {[%emt 0:03:57]} Bd1 {[%emt 0:14:16]} 47. Qc3 {[%emt 0:01:47]} Kg8 {[%emt 0:00:17]} 48. Bxf6 {[%emt 0:03:26]} Qd7 {[%emt 0:00:29]} 49. Bd4 {[%emt 0:01:39]} Kf7 {[%emt 0:01:31]} 50. Qg3 {[%emt 0:02:30]} Kf8 {[%emt 0:00:43]} 51. Qh4 {[%emt 0:00:36]} Qe7 {[%emt 0:02:43]} 52. f6 {[%emt 0:05:58]} Qc7 {[%emt 0:00:22]} 53. Qh6+ {[%emt 0:02:24]} Ke8 {[%emt 0:00:10]} 54. Qg7 {[%emt 0:00:50]} Qxg7 {[%emt 0:00:48]} 55. fxg7 {[%emt 0:00:04]} Kf7 {[%emt 0:00:04]} 56. Ke3 {[%emt 0:00:35]} h5 {[%emt 0:01:52]} 57. Kf4 {[%emt 0:01:49]} Be2 {[%emt 0:00:29]} 58. Kg5 {[%emt 0:03:47]} Bf3 {[%emt 0:00:19]} 59. Kf5 {[%emt 0:01:08]} Bg2 {[%emt 0:00:47]} 60. h4 {[%emt 0:00:06]} Bh3+ {[%emt 0:00:32]} 61. Kg5 {[%emt 0:00:07]} Bg2 {[%emt 0:00:31]} 62. Kf5 {[%emt 0:00:17]} Bh3+ {[%emt 0:00:05]} 63. Kf4 {[%emt 0:00:14]} Bg2 {[%emt 0:00:10]} 64. Bb2 {[%emt 0:00:15]} Bh1 {[%emt 0:00:55]} 65. Ke3 {[%emt 0:00:13]} Bg2 {[%emt 0:00:22]} 66. Kd3 {[%emt 0:00:31]} Bh1 {[%emt 0:00:28]} 67. e5 {[%emt 0:10:56]} Kxg7 {[%emt 0:00:40]} 68. Kd4 {[%emt 0:05:58]} Kf7 {[%emt 0:00:52]} 69. Ba3 {[%emt 0:01:05]} dxe5+ {[%emt 0:00:16]} 70. Kxe5 {[%emt 0:00:03]} b2 {[%emt 0:00:53]} 71. Bxb2 {[%emt 0:00:03]} Ke7 {[%emt 0:00:02]} 72. Ba3+ {[%emt 0:00:22]} Kd7 {[%emt 0:00:03] Ke4} 1/2-1/2

[Event "POL-chT 1 Liga 2019"]
[Site "Dzwirzyno"]
[Date "2019.09.15"]
[Round "9.1"]
[White "Chylewski, Patryk"]
[Black "Nayhebaver, Martin"]
[Result "1/2-1/2"]
[ECO "B31"]
[WhiteElo "2342"]
[BlackElo "2491"]
[Annotator "ChessBase"]
[PlyCount "62"]
[EventDate "2019.09.07"]
[EventType "team-tourn"]
[EventCountry "POL"]
[SourceTitle "playchess.com"]
[Source "ChessBase"]
[SourceQuality "1"]
[TimeControl "40/5400+30:1800+30"]

1. e4 {[%emt 0:00:00]} c5 {[%emt 0:00:00]} 2. Nf3 {[%emt 0:00:00]} Nc6 {[%emt 0:00:50]} 3. Bb5 {[%emt 0:01:04]} g6 {[%emt 0:01:42]} 4. O-O {[%emt 0:01:30]} Bg7 {[%emt 0:00:11]} 5. c3 {[%emt 0:01:55]} e5 {[%emt 0:01:14]} 6. d3 {[%emt 0:00:52]} Nge7 {[%emt 0:02:36]} 7. Be3 {[%emt 0:00:38]} d6 {[%emt 0:08:34]} 8. d4 {[%emt 0:01:15]} cxd4 {[%emt 0:07:22]} 9. cxd4 {[%emt 0:00:06]} O-O {[%emt 0:00:08]} 10. dxe5 {[%emt 0:07:42]} dxe5 {[%emt 0:01:56]} 11. Nbd2 {[%emt 0:01:10]} Nd4 {[%emt 0:04:47]} 12. Nxd4 {[%emt 0:06:55]} exd4 {[%emt 0:00:06]} 13. Bg5 {[%emt 0:00:14]} Qd6 {[%emt 0:11:25]} 14. Bd3 {[%emt 0:03:21]} Nc6 {[%emt 0:02:56]} 15. Nc4 {[%emt 0:01:03]} Qc5 {[%emt 0:02:14]} 16. Bf4 {[%emt 0:03:14]} Rd8 {[%emt 0:00:14]} 17. a3 {[%emt 0:03:07]} Qe7 {[%emt 0:04:23]} 18. Qd2 {[%emt 0:02:01]} Be6 {[%emt 0:00:48]} 19. Bg5 {[%emt 0:06:33]} f6 {[%emt 0:00:26]} 20. Bf4 {[%emt 0:03:05]} Rac8 {[%emt 0:06:46]} 21. Rac1 {[%emt 0:01:38]} Kh8 {[%emt 0:08:27]} 22. Rfd1 {[%emt 0:04:00]} Ne5 {[%emt 0:10:29]} 23. Nxe5 {[%emt 0:14:17]} fxe5 {[%emt 0:00:04]} 24. Bg5 {[%emt 0:00:25]} Bf6 {[%emt 0:00:06]} 25. Bxf6+ {[%emt 0:05:23]} Qxf6 {[%emt 0:00:26]} 26. Rxc8 {[%emt 0:02:25]} Rxc8 {[%emt 0:00:33]} 27. Rc1 {[%emt 0:00:33]} Qe7 {[%emt 0:08:07]} 28. Rxc8+ {[%emt 0:04:34]} Bxc8 {[%emt 0:00:02]} 29. Qc1 {[%emt 0:04:56]} Be6 {[%emt 0:00:35]} 30. f4 {[%emt 0:03:20]} Qd6 {[%emt 0:01:18]} 31. g3 {[%emt 0:00:26]} Kg7 {[%emt 0:03:44]} 1/2-1/2

[Event "POL-chT 1 Liga 2019"]
[Site "Dzwirzyno"]
[Date "2019.09.15"]
[Round "9.2"]
[White "Roubalik, Jakub"]
[Black "Kowalski, Igor"]
[Result "1-0"]
[ECO "E70"]
[WhiteElo "2405"]
[BlackElo "2364"]
[Annotator "NA"]
[PlyCount "91"]
[EventDate "2019.09.07"]
[EventType "team-tourn"]
[EventCountry "POL"]
[SourceTitle "playchess.com"]
[Source "ChessBase"]
[SourceQuality "1"]
[TimeControl "40/5400+30:1800+30"]

1. d4 {[%emt 0:00:00]} Nf6 {[%emt 0:00:00]} 2. c4 {[%emt 0:00:00]} g6 {[%emt 0:00:00]} 3. Nc3 {[%emt 0:00:00]} Bg7 {[%emt 0:00:00]} 4. e4 {[%emt 0:00:00]} d6 {[%emt 0:00:00]} 5. Nge2 {[%emt 0:00:03]} O-O {[%emt 0:00:00]} 6. Ng3 {[%emt 0:00:04]} h5 {[%emt 0:00:00]} 7. Be2 {[%emt 0:02:17] E70: King's Indian: Miscellaneous lines with 4 e4, including 5 Nge2 and 5 Bd3 0-0 6 Nge2} Nbd7 {[%emt 0:00:01]} 8. Bg5 {[%emt 0:01:41]} (8. h4 a6 9. Bg5 c5 10. d5 b5 11. b3 Nh7 12. Bd2 b4 13. Na4 Bxa1 14. Qxa1 e5 {0-1 (59) Rapport,R (2693)-Ding,L (2714) Biel 2013}) 8... Nh7 {[%emt 0:01:58]} 9. Be3 {[%emt 0:00:07]} e5 {[%emt 0:03:44]} 10. d5 {[%emt 0:00:15]} a5 $146 {[%emt 0:01:58]} ({Predecessor:} 10... h4 11. Nf1 f5 12. f3 Ndf6 13. exf5 gxf5 14. Qc2 Nh5 {0-1 (43) Gilea,L (2270)-Istratescu,A (2580) Baile Govora 2017}) 11. Nf1 {[%emt 0:03:43]} h4 {[%emt 0:02:57]} 12. Qc2 {[%emt 0:04:03]} Nc5 {[%emt 0:00:32]} 13. O-O-O {[%emt 0:03:29]} Bd7 {[%emt 0:07:49]} 14. g3 {[%emt 0:02:48]} h3 {[%emt 0:10:14]} 15. Nd2 {[%emt 0:01:20]} a4 {[%emt 0:00:30]} 16. a3 {[%emt 0:19:29]} f5 {[%emt 0:04:42]} 17. Kb1 {[%emt 0:05:43]} f4 {[%emt 0:17:22]} 18. gxf4 {[%emt 0:00:11]} exf4 {[%emt 0:00:03]} 19. Bxc5 {[%emt 0:00:06]} dxc5 {[%emt 0:00:03]} 20. Nf3 {[%emt 0:00:26]} g5 {[%emt 0:01:30]} 21. e5 {[%emt 0:02:31]} Bf5 {[%emt 0:02:05]} 22. Bd3 {[%emt 0:00:13]} Bxd3 {[%emt 0:00:57]} 23. Qxd3 {[%emt 0:02:12]} g4 {[%emt 0:01:11]} 24. Nd2 $18 {[%emt 0:02:26]} Bxe5 {[%emt 0:04:43]} 25. Rdg1 {[%emt 0:03:18]} Qd7 {[%emt 0:23:24]} 26. Qxh3 {[%emt 0:07:57]} Nf6 {[%emt 0:01:47]} 27. Nce4 {[%emt 0:10:41]} Qh7 {[%emt 0:06:48]} 28. Qd3 {[%emt 0:11:01]} Kh8 {[%emt 0:02:02]} 29. Nxc5 {[%emt 0:00:42]} Qxd3+ {[%emt 0:01:23]} 30. Nxd3 {[%emt 0:00:01]} Rfe8 {[%emt 0:00:06]} 31. h3 {[%emt 0:06:12]} g3 {[%emt 0:04:04]} 32. fxg3 {[%emt 0:02:57]} fxg3 {[%emt 0:00:37]} 33. Nxe5 {[%emt 0:01:00]} Rxe5 {[%emt 0:00:06]} 34. Rxg3 {[%emt 0:00:07]} b5 {[%emt 0:01:20]} 35. Rf3 {[%emt 0:03:16]} Nh5 {[%emt 0:01:57]} 36. Rhf1 {[%emt 0:02:57]} Re2 {[%emt 0:01:24]} 37. Rd3 {[%emt 0:00:42]} bxc4 {[%emt 0:00:38]} 38. Nxc4 {[%emt 0:00:07]} Rb8 {[%emt 0:00:27]} 39. Rf7 {[%emt 0:01:17]} Rb3 {[%emt 0:00:21]} 40. Rd1 {[%emt 0:00:00]} Ng3 {[%emt 0:00:00]} 41. Rxc7 {[%emt 0:03:39]} Ne4 {[%emt 0:00:21]} 42. Rc1 {[%emt 0:00:37]} Nd2+ {[%emt 0:01:06]} 43. Nxd2 {[%emt 0:00:20]} Rxd2 {[%emt 0:00:04]} 44. R1c2 {[%emt 0:00:16]} Rd1+ {[%emt 0:01:22]} 45. Ka2 {[%emt 0:01:14]} Rxh3 {[%emt 0:00:14]} 46. Ra7 {[%emt 0:00:08]} 1-0